[Event "*** Titled Tuesday Blitz"]
[Site "Chess.com"]
[Date "2020.05.12"]
[Round "1"]
[White "NotFischer"]
[Black "bait_or_mate"]
[Result "0-1"]
[WhiteElo "2104"]
[BlackElo "2503"]
[TimeControl "180+1"]
[EndTime "10:07:15 PDT"]
[Termination "bait_or_mate won by resignation"]

1. Nf3 {[%clk 0:03:00.9]} 1... d5 {[%clk 0:02:59.2]} 2. g3 {[%clk 0:03:01]} 2...
c6 {[%clk 0:02:59.2]} 3. Bg2 {[%clk 0:03:01.2]} 3... Bg4 {[%clk 0:02:59.2]} 4.
d4 {[%clk 0:03:00.9]} 4... Nf6 {[%clk 0:02:59]} 5. O-O {[%clk 0:03:00.5]} 5...
e6 {[%clk 0:02:59.3]} 6. c4 {[%clk 0:03:00.1]} 6... Nbd7 {[%clk 0:02:59.4]} 7.
Nc3 {[%clk 0:02:59.3]} 7... Bd6 {[%clk 0:02:59.2]} 8. Qb3 {[%clk 0:02:58.2]}
8... Rb8 {[%clk 0:02:53.2]} 9. Bg5 {[%clk 0:02:50]} 9... O-O {[%clk 0:02:52.3]}
10. e4 {[%clk 0:02:42.5]} 10... dxe4 {[%clk 0:02:47.9]} 11. Nxe4 {[%clk
0:02:42.2]} 11... Be7 {[%clk 0:02:48.5]} 12. Rfe1 {[%clk 0:02:31.7]} 12... h6
{[%clk 0:02:44.2]} 13. Bf4 {[%clk 0:02:29.9]} 13... Rc8 {[%clk 0:02:35]} 14.
Nxf6+ {[%clk 0:02:27.2]} 14... Bxf6 {[%clk 0:02:27.1]} 15. Qxb7 {[%clk
0:02:21.7]} 15... Nb6 {[%clk 0:02:24.1]} 16. Ne5 {[%clk 0:01:41.4]} 16... Bxe5
{[%clk 0:02:19.4]} 17. dxe5 {[%clk 0:01:41.5]} 17... Nxc4 {[%clk 0:02:10]} 18.
Qxa7 {[%clk 0:01:34]} 18... Nxb2 {[%clk 0:02:05.1]} 19. Be3 {[%clk 0:01:18.5]}
19... Nd3 {[%clk 0:01:57.8]} 20. f4 {[%clk 0:01:09]} 20... Nxe1 {[%clk
0:01:55.7]} 21. Rxe1 {[%clk 0:01:09.9]} 21... Qd3 {[%clk 0:01:51.5]} 22. Qc5
{[%clk 0:00:58.6]} 22... Rfd8 {[%clk 0:01:44.3]} 23. h3 {[%clk 0:00:56.5]} 23...
Bf5 {[%clk 0:01:40.1]} 24. a4 {[%clk 0:00:56.4]} 24... Be4 {[%clk 0:01:18.9]}
25. Bf1 {[%clk 0:00:56.1]} 25... Qb3 {[%clk 0:01:05.8]} 26. a5 {[%clk
0:00:55.8]} 26... Rd5 {[%clk 0:01:03.7]} 27. Qb6 {[%clk 0:00:55.9]} 27... Qa2
{[%clk 0:00:55.5]} 28. a6 {[%clk 0:00:47.6]} 28... Rb5 {[%clk 0:00:44.8]} 29.
Qd4 {[%clk 0:00:34.3]} 29... Bd5 {[%clk 0:00:43.1]} 30. a7 {[%clk 0:00:33.3]}
30... Ra5 {[%clk 0:00:39.9]} 31. Qb6 {[%clk 0:00:28.5]} 31... Kh7 {[%clk
0:00:24.8]} 32. Qb7 {[%clk 0:00:27.3]} 32... Rf8 {[%clk 0:00:18.1]} 33. Bd3+
{[%clk 0:00:23.2]} 33... g6 {[%clk 0:00:16.6]} 34. Bf2 {[%clk 0:00:14.9]} 34...
c5 {[%clk 0:00:15.1]} 35. h4 {[%clk 0:00:12.5]} 35... Bxb7 {[%clk 0:00:14]} 0-1

[Event "*** Titled Tuesday Blitz"]
[Site "Chess.com"]
[Date "2020.05.12"]
[Round "1"]
[White "BikingBrian"]
[Black "lupta_robin"]
[Result "0-1"]
[WhiteElo "2239"]
[BlackElo "2574"]
[TimeControl "180+1"]
[EndTime "10:07:18 PDT"]
[Termination "lupta_robin won by resignation"]

1. d4 {[%clk 0:03:00.9]} 1... d5 {[%clk 0:02:58.7]} 2. Bf4 {[%clk 0:03:00.4]}
2... Nf6 {[%clk 0:02:58.2]} 3. e3 {[%clk 0:03:00.7]} 3... e6 {[%clk 0:02:57.9]}
4. Nd2 {[%clk 0:02:58.7]} 4... Bd6 {[%clk 0:02:58.1]} 5. Bg3 {[%clk 0:02:59]}
5... O-O {[%clk 0:02:57.4]} 6. Ngf3 {[%clk 0:02:59.2]} 6... Nbd7 {[%clk
0:02:56.4]} 7. Ne5 {[%clk 0:02:53.2]} 7... Qe7 {[%clk 0:02:55.3]} 8. f4 {[%clk
0:02:48.1]} 8... c5 {[%clk 0:02:54.6]} 9. c3 {[%clk 0:02:47.8]} 9... Ne4 {[%clk
0:02:36]} 10. Bd3 {[%clk 0:02:45]} 10... f5 {[%clk 0:02:29.4]} 11. Ndf3 {[%clk
0:02:26.5]} 11... Ndf6 {[%clk 0:02:16.2]} 12. Bh4 {[%clk 0:02:05.6]} 12... Bd7
{[%clk 0:02:13.5]} 13. O-O {[%clk 0:01:57.9]} 13... Be8 {[%clk 0:02:13.5]} 14.
Qe1 {[%clk 0:01:50.8]} 14... Bh5 {[%clk 0:02:10.7]} 15. h3 {[%clk 0:01:42.2]}
15... a6 {[%clk 0:02:04.2]} 16. g4 {[%clk 0:01:38.4]} 16... Bg6 {[%clk 0:01:53]}
17. Kh2 {[%clk 0:01:30.2]} 17... Qe8 {[%clk 0:01:43.3]} 18. Rg1 {[%clk
0:01:25.3]} 18... fxg4 {[%clk 0:01:39.9]} 19. hxg4 {[%clk 0:01:22]} 19... Nd7
{[%clk 0:01:39.7]} 20. Nxd7 {[%clk 0:01:17.7]} 20... Qxd7 {[%clk 0:01:38.9]} 21.
Ne5 {[%clk 0:01:17.9]} 21... Bxe5 {[%clk 0:01:38.3]} 22. fxe5 {[%clk 0:01:00.7]}
22... Rf3 {[%clk 0:01:23.6]} 23. Qe2 {[%clk 0:00:54.2]} 23... Raf8 {[%clk
0:01:23.8]} 24. Raf1 {[%clk 0:00:53.5]} 24... Qf7 {[%clk 0:01:24.1]} 25. Rxf3
{[%clk 0:00:50.3]} 25... Qxf3 {[%clk 0:01:24.3]} 26. Rf1 {[%clk 0:00:45.6]}
26... Qxf1 {[%clk 0:00:58.2]} 27. Qxf1 {[%clk 0:00:44.4]} 27... Rxf1 {[%clk
0:00:57.9]} 28. Bxf1 {[%clk 0:00:45.3]} 28... Nd2 {[%clk 0:00:55.6]} 29. Be2
{[%clk 0:00:40.7]} 29... c4 {[%clk 0:00:55.5]} 30. Be1 {[%clk 0:00:30.2]} 30...
Ne4 {[%clk 0:00:52.7]} 31. Bf3 {[%clk 0:00:24.3]} 31... Ng5 {[%clk 0:00:50.8]}
32. Kg2 {[%clk 0:00:22.2]} 32... Be4 {[%clk 0:00:46.2]} 33. Bxe4 {[%clk
0:00:20.2]} 33... Nxe4 {[%clk 0:00:47.1]} 34. Kf3 {[%clk 0:00:18.8]} 34... g5
{[%clk 0:00:32.8]} 35. b4 {[%clk 0:00:16.1]} 35... b5 {[%clk 0:00:30.5]} 36. a3
{[%clk 0:00:15.3]} 36... Kf7 {[%clk 0:00:30.6]} 37. Kg2 {[%clk 0:00:14.1]} 37...
Kg6 {[%clk 0:00:30.7]} 38. Kh3 {[%clk 0:00:14.3]} 38... h5 {[%clk 0:00:30.4]}
39. gxh5+ {[%clk 0:00:13.8]} 39... Kxh5 {[%clk 0:00:30.7]} 40. Kg2 {[%clk
0:00:13.6]} 40... g4 {[%clk 0:00:30.7]} 41. Kh2 {[%clk 0:00:11.1]} 41... Kg5
{[%clk 0:00:30.9]} 42. Kg2 {[%clk 0:00:11.3]} 42... Kf5 {[%clk 0:00:31.3]} 43.
Kh2 {[%clk 0:00:11.1]} 43... Ng5 {[%clk 0:00:27.7]} 44. Kg3 {[%clk 0:00:10.4]}
44... Nf3 {[%clk 0:00:27.3]} 45. Bf2 {[%clk 0:00:10.3]} 45... Nd2 {[%clk
0:00:27.8]} 46. Kg2 {[%clk 0:00:08.4]} 46... Nb1 {[%clk 0:00:28]} 47. Be1 {[%clk
0:00:08.4]} 47... Nxa3 {[%clk 0:00:28.1]} 0-1

[Event "*** Titled Tuesday Blitz"]
[Site "Chess.com"]
[Date "2020.05.12"]
[Round "1"]
[White "RitvarsReimanis"]
[Black "ADODOVE"]
[Result "1-0"]
[WhiteElo "2481"]
[BlackElo "1993"]
[TimeControl "180+1"]
[EndTime "10:07:18 PDT"]
[Termination "RitvarsReimanis won on time"]

1. d4 {[%clk 0:02:42.6]} 1... Nf6 {[%clk 0:02:58.2]} 2. c4 {[%clk 0:01:42.4]}
2... e6 {[%clk 0:02:57]} 3. Nf3 {[%clk 0:01:40.7]} 3... c5 {[%clk 0:02:54.9]} 4.
d5 {[%clk 0:01:37.9]} 4... exd5 {[%clk 0:02:54.2]} 5. cxd5 {[%clk 0:01:38.8]}
5... d6 {[%clk 0:02:54.4]} 6. Nc3 {[%clk 0:01:27.1]} 6... g6 {[%clk 0:02:52.8]}
7. h3 {[%clk 0:01:27.2]} 7... Bg7 {[%clk 0:02:49.9]} 8. e4 {[%clk 0:01:25.3]}
8... O-O {[%clk 0:02:47.9]} 9. Bd3 {[%clk 0:01:24.4]} 9... b5 {[%clk 0:02:41.3]}
10. Nxb5 {[%clk 0:01:17.9]} 10... Re8 {[%clk 0:02:34.2]} 11. O-O {[%clk
0:01:18.1]} 11... Nxe4 {[%clk 0:02:28.7]} 12. Re1 {[%clk 0:00:50.9]} 12... a6
{[%clk 0:02:26.8]} 13. Na3 {[%clk 0:00:48.4]} 13... Nf6 {[%clk 0:02:22.3]} 14.
Rxe8+ {[%clk 0:00:39.5]} 14... Nxe8 {[%clk 0:02:05.7]} 15. Nc4 {[%clk
0:00:35.4]} 15... Bb7 {[%clk 0:01:53.5]} 16. Bf1 {[%clk 0:00:22]} 16... Nd7
{[%clk 0:01:47.8]} 17. Bg5 {[%clk 0:00:21]} 17... Qc7 {[%clk 0:01:40]} 18. Bd2
{[%clk 0:00:20.8]} 18... a5 {[%clk 0:01:28.7]} 19. Bc3 {[%clk 0:00:19.4]} 19...
Bxc3 {[%clk 0:01:18.7]} 20. bxc3 {[%clk 0:00:20.3]} 20... Nb6 {[%clk 0:01:13.9]}
21. Nxb6 {[%clk 0:00:19]} 21... Qxb6 {[%clk 0:01:12.9]} 22. Rb1 {[%clk
0:00:19.6]} 22... Qc7 {[%clk 0:01:06.8]} 23. Qd2 {[%clk 0:00:20.2]} 23... Ng7
{[%clk 0:00:48.8]} 24. Bb5 {[%clk 0:00:19.8]} 24... Rb8 {[%clk 0:00:44.2]} 25.
c4 {[%clk 0:00:20.3]} 25... Bc8 {[%clk 0:00:41.2]} 26. a4 {[%clk 0:00:20.8]}
26... Bf5 {[%clk 0:00:39.2]} 27. Re1 {[%clk 0:00:21.4]} 27... Rd8 {[%clk
0:00:26]} 28. g4 {[%clk 0:00:21.4]} 28... Bc8 {[%clk 0:00:22.2]} 29. Qg5 {[%clk
0:00:20]} 29... Rf8 {[%clk 0:00:12.5]} 30. Qe7 {[%clk 0:00:16.8]} 30... Qd8
{[%clk 0:00:11.2]} 31. Qxd8 {[%clk 0:00:16.2]} 31... Rxd8 {[%clk 0:00:10.7]} 32.
Re7 {[%clk 0:00:17.1]} 32... h5 {[%clk 0:00:08.9]} 33. Nh2 {[%clk 0:00:14.8]}
33... hxg4 {[%clk 0:00:08.5]} 34. hxg4 {[%clk 0:00:15.7]} 34... f5 {[%clk
0:00:05.5]} 35. f3 {[%clk 0:00:16.1]} 35... fxg4 {[%clk 0:00:04.6]} 36. fxg4
{[%clk 0:00:17]} 36... Rf8 {[%clk 0:00:03.6]} 37. Ra7 {[%clk 0:00:17.3]} 1-0

[Event "*** Titled Tuesday Blitz"]
[Site "Chess.com"]
[Date "2020.05.12"]
[Round "1"]
[White "julinha97"]
[Black "harvsp123"]
[Result "0-1"]
[WhiteElo "2170"]
[BlackElo "2522"]
[TimeControl "180+1"]
[EndTime "10:07:19 PDT"]
[Termination "harvsp123 won by checkmate"]

1. e4 {[%clk 0:02:58.7]} 1... c5 {[%clk 0:02:54.5]} 2. Nf3 {[%clk 0:02:58.4]}
2... d6 {[%clk 0:02:50]} 3. d4 {[%clk 0:02:58.2]} 3... cxd4 {[%clk 0:02:50.9]}
4. Nxd4 {[%clk 0:02:59.1]} 4... Nf6 {[%clk 0:02:51.5]} 5. Nc3 {[%clk 0:02:58.9]}
5... a6 {[%clk 0:02:51.9]} 6. Rg1 {[%clk 0:02:55.3]} 6... b5 {[%clk 0:02:29.5]}
7. g4 {[%clk 0:02:22.7]} 7... Bb7 {[%clk 0:02:29.3]} 8. Bg2 {[%clk 0:02:15.1]}
8... e5 {[%clk 0:02:23.9]} 9. Nf5 {[%clk 0:02:11.4]} 9... b4 {[%clk 0:02:23.9]}
10. Nd5 {[%clk 0:02:08]} 10... Nxd5 {[%clk 0:02:10.9]} 11. exd5 {[%clk
0:02:08.2]} 11... g6 {[%clk 0:02:11.8]} 12. Ne3 {[%clk 0:02:07.2]} 12... Nd7
{[%clk 0:02:07]} 13. Bd2 {[%clk 0:02:06.7]} 13... a5 {[%clk 0:02:00.2]} 14. Qe2
{[%clk 0:02:06.3]} 14... Bh6 {[%clk 0:01:47.6]} 15. O-O-O {[%clk 0:02:01.2]}
15... Qc7 {[%clk 0:01:42.9]} 16. Kb1 {[%clk 0:01:52.4]} 16... Ba6 {[%clk
0:01:31.1]} 17. Qf3 {[%clk 0:01:46.7]} 17... Rc8 {[%clk 0:01:29.6]} 18. Rc1
{[%clk 0:01:43.6]} 18... Bf4 {[%clk 0:01:26]} 19. h4 {[%clk 0:01:38.2]} 19...
O-O {[%clk 0:01:21.8]} 20. g5 {[%clk 0:01:35.1]} 20... Nb6 {[%clk 0:01:07.4]}
21. Rgd1 {[%clk 0:01:27.3]} 21... Bxe3 {[%clk 0:01:01.5]} 22. Bxe3 {[%clk
0:01:25.6]} 22... Nc4 {[%clk 0:00:57.1]} 23. h5 {[%clk 0:01:21.6]} 23... Na3+
{[%clk 0:00:21]} 24. bxa3 {[%clk 0:00:54.3]} 24... bxa3 {[%clk 0:00:21.9]} 25.
Bd4 {[%clk 0:00:12.4]} 25... exd4 {[%clk 0:00:17.7]} 26. Qxa3 {[%clk 0:00:12.8]}
26... Rb8+ {[%clk 0:00:14.8]} 27. Ka1 {[%clk 0:00:13.3]} 27... Rb4 {[%clk
0:00:14.3]} 28. hxg6 {[%clk 0:00:10.4]} 28... hxg6 {[%clk 0:00:13.9]} 29. Be4
{[%clk 0:00:08.4]} 29... Rfb8 {[%clk 0:00:13.1]} 30. Bd3 {[%clk 0:00:07.5]}
30... Bc4 {[%clk 0:00:11.8]} 31. Bxc4 {[%clk 0:00:07.5]} 31... Qxc4 {[%clk
0:00:11.7]} 32. Rd3 {[%clk 0:00:05]} 32... Ra4 {[%clk 0:00:11.8]} 33. Qb3 {[%clk
0:00:04.2]} 33... Rxb3 {[%clk 0:00:11]} 34. cxb3 {[%clk 0:00:05]} 34... Qxc1#
{[%clk 0:00:10.8]} 0-1

[Event "*** Titled Tuesday Blitz"]
[Site "Chess.com"]
[Date "2020.05.12"]
[Round "1"]
[White "Love_craft"]
[Black "LiemLe"]
[Result "1-0"]
[WhiteElo "2541"]
[BlackElo "2944"]
[TimeControl "180+1"]
[EndTime "10:07:20 PDT"]
[Termination "Love_craft won by resignation"]

1. d4 {[%clk 0:03:00.4]} 1... Nf6 {[%clk 0:02:59.5]} 2. c4 {[%clk 0:02:57.3]}
2... e6 {[%clk 0:02:59.6]} 3. Nc3 {[%clk 0:02:56.9]} 3... Bb4 {[%clk 0:02:59.2]}
4. e3 {[%clk 0:02:57]} 4... O-O {[%clk 0:02:57.6]} 5. Ne2 {[%clk 0:02:53.6]}
5... Re8 {[%clk 0:02:56.4]} 6. a3 {[%clk 0:02:49.9]} 6... Bf8 {[%clk 0:02:56.9]}
7. Ng3 {[%clk 0:02:31.4]} 7... d5 {[%clk 0:02:56.3]} 8. Bd3 {[%clk 0:02:29.9]}
8... b6 {[%clk 0:02:50.4]} 9. O-O {[%clk 0:02:25]} 9... Bb7 {[%clk 0:02:49]} 10.
cxd5 {[%clk 0:02:24.8]} 10... exd5 {[%clk 0:02:49.9]} 11. b4 {[%clk 0:02:21.5]}
11... Nbd7 {[%clk 0:02:43.7]} 12. Bb2 {[%clk 0:02:21.1]} 12... c6 {[%clk
0:02:37.1]} 13. Rc1 {[%clk 0:02:20.6]} 13... a5 {[%clk 0:02:34.7]} 14. b5 {[%clk
0:02:15.6]} 14... c5 {[%clk 0:02:33.5]} 15. dxc5 {[%clk 0:02:16]} 15... bxc5
{[%clk 0:02:34.4]} 16. a4 {[%clk 0:02:13.9]} 16... Nb6 {[%clk 0:02:31]} 17. Bb1
{[%clk 0:02:06.6]} 17... g6 {[%clk 0:02:06.8]} 18. Ba1 {[%clk 0:01:36.6]} 18...
d4 {[%clk 0:01:38.7]} 19. exd4 {[%clk 0:01:34.6]} 19... cxd4 {[%clk 0:01:39.6]}
20. Nce2 {[%clk 0:01:15.5]} 20... Bh6 {[%clk 0:01:38.4]} 21. Nxd4 {[%clk
0:00:54]} 21... Bxc1 {[%clk 0:01:37.2]} 22. Qxc1 {[%clk 0:00:54.9]} 22... Rc8
{[%clk 0:01:24.8]} 23. Qh6 {[%clk 0:00:47.5]} 23... Ng4 {[%clk 0:01:13.4]} 24.
Qh3 {[%clk 0:00:38.2]} 24... Qd5 {[%clk 0:00:28.3]} 25. f3 {[%clk 0:00:23.1]}
25... Nf6 {[%clk 0:00:18.3]} 26. Qh6 {[%clk 0:00:11.8]} 26... Nbd7 {[%clk
0:00:15.1]} 27. Ndf5 {[%clk 0:00:10.5]} 27... gxf5 {[%clk 0:00:14.2]} 28. Nxf5
{[%clk 0:00:09.9]} 28... Qc5+ {[%clk 0:00:08.5]} 29. Bd4 {[%clk 0:00:06]} 29...
Qf8 {[%clk 0:00:07.9]} 30. Qg5+ {[%clk 0:00:05.3]} 30... Kh8 {[%clk 0:00:08.3]}
31. Bxf6+ {[%clk 0:00:05.7]} 31... Nxf6 {[%clk 0:00:09.2]} 32. Qxf6+ {[%clk
0:00:06.5]} 32... Kg8 {[%clk 0:00:09.9]} 33. Nh6+ {[%clk 0:00:06.7]} 33... Qxh6
{[%clk 0:00:09.8]} 34. Qxh6 {[%clk 0:00:07.6]} 34... Re6 {[%clk 0:00:07.4]} 35.
Bxh7+ {[%clk 0:00:07.2]} 35... Kh8 {[%clk 0:00:07.8]} 36. Bg6+ {[%clk
0:00:07.5]} 36... Kg8 {[%clk 0:00:08.7]} 37. Qh7+ {[%clk 0:00:07.9]} 1-0

[Event "*** Titled Tuesday Blitz"]
[Site "Chess.com"]
[Date "2020.05.12"]
[Round "1"]
[White "kuba2006"]
[Black "sergiochess83"]
[Result "0-1"]
[WhiteElo "2425"]
[BlackElo "2820"]
[TimeControl "180+1"]
[EndTime "10:07:20 PDT"]
[Termination "sergiochess83 won on time"]

1. e4 {[%clk 0:03:00.9]} 1... c5 {[%clk 0:02:59.3]} 2. Nf3 {[%clk 0:03:00.3]}
2... d6 {[%clk 0:02:59.2]} 3. d4 {[%clk 0:03:00.6]} 3... cxd4 {[%clk 0:03:00.1]}
4. Qxd4 {[%clk 0:03:01.4]} 4... Nf6 {[%clk 0:02:58.7]} 5. Nc3 {[%clk 0:03:00.7]}
5... a6 {[%clk 0:02:56.4]} 6. Bg5 {[%clk 0:02:58.5]} 6... Nc6 {[%clk 0:02:56.1]}
7. Qd2 {[%clk 0:02:57.8]} 7... e6 {[%clk 0:02:53.8]} 8. O-O-O {[%clk 0:02:56.9]}
8... Be7 {[%clk 0:02:53.6]} 9. Nd4 {[%clk 0:02:48]} 9... Bd7 {[%clk 0:02:43.3]}
10. Kb1 {[%clk 0:02:42.8]} 10... O-O {[%clk 0:02:41.2]} 11. f4 {[%clk
0:02:40.3]} 11... b5 {[%clk 0:02:37.9]} 12. Bxf6 {[%clk 0:02:28.2]} 12... Bxf6
{[%clk 0:02:34.7]} 13. Nxc6 {[%clk 0:02:06.7]} 13... Bxc6 {[%clk 0:02:34.6]} 14.
Bd3 {[%clk 0:01:56.6]} 14... Rc8 {[%clk 0:02:24.3]} 15. Ne2 {[%clk 0:01:54.7]}
15... Qb6 {[%clk 0:02:16.9]} 16. g4 {[%clk 0:01:52.3]} 16... g6 {[%clk
0:02:05.8]} 17. h4 {[%clk 0:01:49]} 17... b4 {[%clk 0:01:57.5]} 18. h5 {[%clk
0:01:44.8]} 18... a5 {[%clk 0:01:46.3]} 19. Qe1 {[%clk 0:01:06.8]} 19... g5
{[%clk 0:01:36.3]} 20. Qd2 {[%clk 0:01:00.4]} 20... h6 {[%clk 0:01:33.4]} 21.
Rhf1 {[%clk 0:00:59.8]} 21... gxf4 {[%clk 0:01:19.2]} 22. Qxf4 {[%clk
0:00:57.9]} 22... Bg7 {[%clk 0:01:14.1]} 23. g5 {[%clk 0:00:51.8]} 23... Qc5
{[%clk 0:01:04.3]} 24. Rg1 {[%clk 0:00:29.9]} 24... Qe5 {[%clk 0:00:55.8]} 25.
Qc1 {[%clk 0:00:18.4]} 25... Kh8 {[%clk 0:00:56]} 26. gxh6 {[%clk 0:00:18]}
26... Bf6 {[%clk 0:00:56.3]} 27. Nf4 {[%clk 0:00:12.4]} 27... a4 {[%clk
0:00:37.9]} 28. Rdf1 {[%clk 0:00:10.3]} 28... a3 {[%clk 0:00:27.4]} 29. Ng6+
{[%clk 0:00:09.9]} 29... fxg6 {[%clk 0:00:27.2]} 30. hxg6 {[%clk 0:00:10.1]}
30... Kg8 {[%clk 0:00:18.2]} 31. g7 {[%clk 0:00:07.1]} 31... Rf7 {[%clk
0:00:16.8]} 32. Rh1 {[%clk 0:00:04.7]} 32... Qxb2+ {[%clk 0:00:13.5]} 33. Qxb2
{[%clk 0:00:04.3]} 33... Bxb2 {[%clk 0:00:14.4]} 34. h7+ {[%clk 0:00:03.4]}
34... Kxg7 {[%clk 0:00:14.9]} 35. Rfg1+ {[%clk 0:00:03.3]} 35... Kh8 {[%clk
0:00:14.5]} 0-1

[Event "*** Titled Tuesday Blitz"]
[Site "Chess.com"]
[Date "2020.05.12"]
[Round "1"]
[White "Steven_Rojas"]
[Black "LionTheLeon_06"]
[Result "0-1"]
[WhiteElo "2356"]
[BlackElo "2691"]
[TimeControl "180+1"]
[EndTime "10:07:20 PDT"]
[Termination "LionTheLeon_06 won on time"]

1. c4 {[%clk 0:03:00.9]} 1... Nf6 {[%clk 0:02:59.3]} 2. Nc3 {[%clk 0:02:58.8]}
2... e6 {[%clk 0:02:59.2]} 3. e4 {[%clk 0:02:58]} 3... d5 {[%clk 0:02:59]} 4. e5
{[%clk 0:02:57.9]} 4... d4 {[%clk 0:02:58.9]} 5. exf6 {[%clk 0:02:57.6]} 5...
dxc3 {[%clk 0:02:59.1]} 6. bxc3 {[%clk 0:02:58.5]} 6... Qxf6 {[%clk 0:02:58.2]}
7. Nf3 {[%clk 0:02:58.9]} 7... b6 {[%clk 0:02:54.9]} 8. d4 {[%clk 0:02:56.2]}
8... Bb7 {[%clk 0:02:55.2]} 9. Be2 {[%clk 0:02:47.3]} 9... Nd7 {[%clk
0:02:46.6]} 10. O-O {[%clk 0:02:41.3]} 10... h6 {[%clk 0:02:46.8]} 11. a4 {[%clk
0:02:11.5]} 11... Bd6 {[%clk 0:02:36.6]} 12. Rb1 {[%clk 0:02:06.5]} 12... O-O
{[%clk 0:02:22.9]} 13. c5 {[%clk 0:02:03]} 13... Bf4 {[%clk 0:02:13.7]} 14. Ba3
{[%clk 0:01:48]} 14... Rfd8 {[%clk 0:01:41.8]} 15. g3 {[%clk 0:01:39]} 15... e5
{[%clk 0:01:33.8]} 16. gxf4 {[%clk 0:01:36.3]} 16... Qxf4 {[%clk 0:01:29.8]} 17.
Bc1 {[%clk 0:01:19.9]} 17... Qg4+ {[%clk 0:01:29.3]} 18. Kh1 {[%clk 0:01:19.9]}
18... Nxc5 {[%clk 0:01:18.2]} 19. Rg1 {[%clk 0:01:11.1]} 19... Qh5 {[%clk
0:01:18.4]} 20. Be3 {[%clk 0:00:39.5]} 20... Ne4 {[%clk 0:01:01.1]} 21. Rc1
{[%clk 0:00:27.4]} 21... c5 {[%clk 0:00:46.2]} 22. Rg2 {[%clk 0:00:18.6]} 22...
exd4 {[%clk 0:00:37.3]} 23. cxd4 {[%clk 0:00:19.5]} 23... Qh3 {[%clk 0:00:20.9]}
24. Qg1 {[%clk 0:00:13.2]} 24... g6 {[%clk 0:00:18]} 25. dxc5 {[%clk 0:00:07]}
25... bxc5 {[%clk 0:00:18.2]} 26. Rxg6+ {[%clk 0:00:03.4]} 26... fxg6 {[%clk
0:00:11.7]} 27. Qxg6+ {[%clk 0:00:04.3]} 27... Kh8 {[%clk 0:00:12.1]} 28. Bxh6
{[%clk 0:00:02]} 28... Nxf2+ {[%clk 0:00:11.5]} 29. Kg1 {[%clk 0:00:01.7]} 29...
Qg4+ {[%clk 0:00:11.8]} 30. Qxg4 {[%clk 0:00:01.5]} 30... Nxg4 {[%clk
0:00:12.7]} 31. Bg5 {[%clk 0:00:01.9]} 31... Rg8 {[%clk 0:00:12.8]} 32. Rxc5
{[%clk 0:00:02.2]} 32... Nf6 {[%clk 0:00:11.4]} 0-1

[Event "*** Titled Tuesday Blitz"]
[Site "Chess.com"]
[Date "2020.05.12"]
[Round "1"]
[White "Matalon"]
[Black "ChessQueen"]
[Result "1-0"]
[WhiteElo "2341"]
[BlackElo "2631"]
[TimeControl "180+1"]
[EndTime "10:07:20 PDT"]
[Termination "Matalon won by checkmate"]

1. e4 {[%clk 0:02:58.9]} 1... c6 {[%clk 0:02:58.7]} 2. d4 {[%clk 0:02:57.9]}
2... d5 {[%clk 0:02:58.6]} 3. Nd2 {[%clk 0:02:57.6]} 3... dxe4 {[%clk
0:02:58.1]} 4. Nxe4 {[%clk 0:02:57.5]} 4... Nf6 {[%clk 0:02:58.4]} 5. Nxf6+
{[%clk 0:02:55.3]} 5... exf6 {[%clk 0:02:59.3]} 6. c3 {[%clk 0:02:55]} 6... Bd6
{[%clk 0:02:58.7]} 7. Bd3 {[%clk 0:02:53]} 7... O-O {[%clk 0:02:58.3]} 8. Qc2
{[%clk 0:02:53.4]} 8... Re8+ {[%clk 0:02:57.8]} 9. Ne2 {[%clk 0:02:53.2]} 9...
h5 {[%clk 0:02:58]} 10. Be3 {[%clk 0:02:47.6]} 10... Nd7 {[%clk 0:02:57.7]} 11.
O-O-O {[%clk 0:02:47]} 11... Nf8 {[%clk 0:02:57.6]} 12. Kb1 {[%clk 0:02:38.5]}
12... Be6 {[%clk 0:02:55.8]} 13. c4 {[%clk 0:02:35]} 13... Rc8 {[%clk
0:02:55.5]} 14. Nf4 {[%clk 0:02:27.7]} 14... Bxf4 {[%clk 0:02:48.4]} 15. Bxf4
{[%clk 0:02:27]} 15... b5 {[%clk 0:02:48.6]} 16. c5 {[%clk 0:02:21.5]} 16... Qd5
{[%clk 0:02:39.9]} 17. b3 {[%clk 0:02:16.5]} 17... f5 {[%clk 0:02:39.6]} 18. g3
{[%clk 0:01:58.1]} 18... a5 {[%clk 0:02:37.2]} 19. Rhe1 {[%clk 0:01:51.4]} 19...
Ng6 {[%clk 0:02:36.1]} 20. Bd6 {[%clk 0:01:46.8]} 20... a4 {[%clk 0:02:35.4]}
21. b4 {[%clk 0:01:34.6]} 21... Qxd4 {[%clk 0:02:18.9]} 22. Qd2 {[%clk
0:01:15.7]} 22... a3 {[%clk 0:01:50.4]} 23. Be2 {[%clk 0:01:06.4]} 23... Qf6
{[%clk 0:01:40.8]} 24. Bxh5 {[%clk 0:01:03.1]} 24... f4 {[%clk 0:01:41.1]} 25.
Be2 {[%clk 0:00:51.1]} 25... Bf5+ {[%clk 0:01:17.6]} 26. Bd3 {[%clk 0:00:50.8]}
26... Ne5 {[%clk 0:01:17.2]} 27. Bxe5 {[%clk 0:00:44.2]} 27... Rxe5 {[%clk
0:01:16.5]} 28. Rxe5 {[%clk 0:00:42.1]} 28... Bxd3+ {[%clk 0:01:08.6]} 29. Qxd3
{[%clk 0:00:41.5]} 29... Qxe5 {[%clk 0:01:09.1]} 30. Qd4 {[%clk 0:00:41.2]}
30... Qe2 {[%clk 0:00:24.2]} 31. Rd2 {[%clk 0:00:39]} 31... Qe1+ {[%clk
0:00:24.1]} 32. Kc2 {[%clk 0:00:39.1]} 32... fxg3 {[%clk 0:00:21.7]} 33. hxg3
{[%clk 0:00:37.7]} 33... Re8 {[%clk 0:00:21.6]} 34. g4 {[%clk 0:00:26.4]} 34...
Qf1 {[%clk 0:00:16]} 35. Kb3 {[%clk 0:00:21.2]} 35... Qh3+ {[%clk 0:00:13.2]}
36. Rd3 {[%clk 0:00:18.1]} 36... Qg2 {[%clk 0:00:12.6]} 37. Kxa3 {[%clk
0:00:15.7]} 37... Re2 {[%clk 0:00:12.4]} 38. Qd8+ {[%clk 0:00:11.3]} 38... Kh7
{[%clk 0:00:12.5]} 39. Qh4+ {[%clk 0:00:11.8]} 39... Kg6 {[%clk 0:00:12.7]} 40.
Qh5+ {[%clk 0:00:12]} 40... Kf6 {[%clk 0:00:13]} 41. Qf5+ {[%clk 0:00:12.4]}
41... Ke7 {[%clk 0:00:12.5]} 42. Rd7+ {[%clk 0:00:12]} 42... Kf8 {[%clk
0:00:12.6]} 43. Qxf7# {[%clk 0:00:12.2]} 1-0